fUST/lending_fUST_20250831
["ID","MTS","AMOUNT","RATE_DAILY","PERIOD"]
[382323830,1756578645701,-161.193833,0.00019178,2]
[382323832,1756578645711,-161.193833,0.00019178,2]
[382323834,1756578645721,-161.193833,0.00019178,2]
[382323836,1756578645730,-151.0,0.00019178,2]
[382323839,1756578645740,-151.0,0.00019178,2]
[382323840,1756578645752,-161.193836,0.00019178,2]
[382323841,1756578645763,-151.0,0.00019178,2]
[382323842,1756578645774,-480.0,0.00019178,2]
[382323843,1756578645784,-843.65,0.00019178,2]
[382323844,1756578645794,-480.0,0.00019178,2]
[382323845,1756578645804,-480.0,0.00019178,2]
[382323847,1756578645814,-151.0,0.00019178,2]
[382323849,1756578645824,-151.0,0.00019178,2]
[382323850,1756578645835,-151.0,0.00019178,2]
[382323851,1756578645845,-151.0,0.00019178,2]
[382323852,1756578645856,-151.0,0.00019178,2]
[382323854,1756578645870,-417.15472785,0.00019178,7]
[382323855,1756578645879,-151.0,0.00019178,2]
[382323857,1756578645889,-151.0,0.00019178,2]
[382323858,1756578645899,-151.0,0.00019178,2]
[382323859,1756578645908,-151.0,0.00019178,2]
[382323860,1756578645918,-151.0,0.00019178,2]
[382323861,1756578645928,-480.0,0.00019178,2]
[382323862,1756578645938,-151.0,0.00019178,2]
[382323863,1756578645948,-151.0,0.00019178,2]
[382323864,1756578645959,-480.0,0.00019178,2]
[382323865,1756578645970,-587.64,0.00019178,2]
[382323866,1756578645980,-204.744535,0.00019178,2]
[382323867,1756578645989,-204.744535,0.00019178,2]
[382323868,1756578645999,-204.744535,0.00019178,2]
[382323869,1756578646008,-204.744535,0.00019178,2]
[382323870,1756578646018,-1358.6,0.00019178,2]
[382323871,1756578646027,-633.82,0.00019178,2]
[382323872,1756578646036,-204.744535,0.00019178,2]
[382323873,1756578646045,-204.744535,0.00019178,2]
[382323874,1756578646055,-480.0,0.00019178,2]
[382323875,1756578646065,-204.744535,0.00019178,2]
[382323876,1756578646074,-204.744535,0.00019178,2]
[382323877,1756578646084,-204.744535,0.00019178,2]
[382323878,1756578646093,-480.0,0.00019178,2]
[382323879,1756578646103,-204.744535,0.00019178,2]
[382323880,1756578646112,-204.744535,0.00019178,2]
[382323881,1756578646122,-204.744535,0.00019178,2]
[382323882,1756578646131,-204.744535,0.00019178,2]
[382323883,1756578646141,-480.0,0.00019178,2]
[382323884,1756578646150,-204.744535,0.00019178,2]
[382323885,1756578646159,-151.0,0.00019178,2]
[382323886,1756578646168,-204.744535,0.00019178,2]
[382323887,1756578646178,-204.744535,0.00019178,2]
[382323888,1756578646187,-204.744535,0.00019178,2]
[382323889,1756578646196,-204.744535,0.00019178,2]
[382323890,1756578646206,-204.744535,0.00019178,2]
[382323891,1756578646218,-480.0,0.00019178,2]
[382323892,1756578646227,-480.0,0.00019178,2]
[382323893,1756578646237,-204.74454,0.00019178,2]
[382323894,1756578646246,-151.0,0.00019178,2]
[382323895,1756578646255,-151.0,0.00019178,2]
[382323896,1756578646264,-151.0,0.00019178,2]
[382323897,1756578646274,-852.89,0.00019178,2]
[382323898,1756578646283,-5667.41,0.00019178,2]
[382323899,1756578646293,-151.0,0.00019178,2]
[382323900,1756578646302,-151.0,0.00019178,2]
[382323901,1756578646312,-151.0,0.00019178,2]
[382323902,1756578646322,-151.0,0.00019178,2]
[382323903,1756578646331,-151.0,0.00019178,2]
[382323904,1756578646343,-151.0,0.00019178,2]
[382323905,1756578646353,-151.0,0.00019178,2]
[382323906,1756578646366,-151.0,0.00019178,2]
[382323907,1756578646376,-151.0,0.00019178,2]
[382323908,1756578646386,-151.0,0.00019178,2]
[382323909,1756578646395,-151.0,0.00019178,2]
[382323910,1756578646406,-1477.25,0.00019178,2]
[382323911,1756578646416,-151.0,0.00019178,2]
[382323912,1756578646427,-151.0,0.00019178,2]
[382323913,1756578646436,-151.0,0.00019178,2]
[382323914,1756578646447,-480.0,0.00019178,2]
[382323915,1756578646457,-151.0,0.00019178,2]
[382323916,1756578646466,-151.0,0.00019178,2]
[382323917,1756578646475,-233.805216,0.00019178,2]
[382323918,1756578646485,-151.0,0.00019178,2]
[382323919,1756578646494,-151.0,0.00019178,2]
[382323920,1756578646504,-1691.0,0.00019178,2]
[382323921,1756578646514,-151.0,0.00019178,2]
[382323922,1756578646524,-151.0,0.00019178,2]
[382323923,1756578646533,-480.0,0.00019178,2]
[382323924,1756578646544,-151.0,0.00019178,2]
[382323925,1756578646554,-213.145536,0.00019178,2]
[382323926,1756578646564,-661.69,0.00019178,2]
[382323927,1756578646574,-1670.05,0.00019178,2]
[382323928,1756578646583,-2103.5,0.00019178,2]
[382323929,1756578646593,-746.98,0.00019178,2]
[382323930,1756578646603,-480.0,0.00019178,2]
[382323931,1756578646613,-765.89,0.00019178,2]
[382323932,1756578646622,-964.14,0.00019178,2]
[382323933,1756578646632,-1822.37,0.00019178,2]
[382323934,1756578646641,-828.58,0.00019178,2]
[382323935,1756578646651,-480.0,0.00019178,2]
[382323936,1756578646660,-184.992594,0.00019178,2]
[382323937,1756578646669,-184.992594,0.00019178,2]
[382323938,1756578646679,-184.992594,0.00019178,2]
[382323939,1756578646692,-480.0,0.00019178,2]
[382323940,1756578646702,-480.0,0.00019178,2]
[382323941,1756578646711,-184.992594,0.00019178,2]
[382323942,1756578646720,-184.992594,0.00019178,2]
[382323943,1756578646731,-184.992594,0.00019178,2]
[382323944,1756578646740,-480.0,0.00019178,2]
[382323945,1756578646750,-184.992594,0.00019178,2]
[382323946,1756578646760,-184.992594,0.00019178,2]
[382323947,1756578646769,-184.992594,0.00019178,2]
[382323948,1756578646779,-184.992594,0.00019178,2]
[382323949,1756578646788,-184.992594,0.00019178,2]
[382323950,1756578646798,-958.81,0.00019178,2]
[382323951,1756578646808,-184.992594,0.00019178,2]
[382323952,1756578646817,-184.992594,0.00019178,2]
[382323953,1756578646827,-842.47,0.00019178,2]
[382323954,1756578646836,-184.992594,0.00019178,2]
[382323955,1756578646846,-184.992594,0.00019178,2]
[382323956,1756578646856,-480.0,0.00019178,2]
[382323957,1756578646865,-184.992594,0.00019178,2]
[382323958,1756578646876,-184.992594,0.00019178,2]
[382323959,1756578646885,-184.992594,0.00019178,2]
[382323960,1756578646895,-184.992594,0.00019178,2]
[382323961,1756578646904,-616.82,0.00019178,2]
[382323962,1756578646915,-184.992597,0.00019178,2]
[382323963,1756578646925,-480.0,0.00019178,2]
[382323964,1756578646935,-1447.42,0.00019178,2]
[382323965,1756578646944,-151.0,0.00019178,2]
[382323966,1756578646954,-151.0,0.00019178,2]
[382323967,1756578646963,-151.0,0.00019178,2]
[382323968,1756578646973,-480.0,0.00019178,2]
[382323969,1756578646982,-151.0,0.00019178,2]
[382323970,1756578646993,-151.0,0.00019178,2]
[382323971,1756578647003,-1367.14,0.00019178,2]
[382323972,1756578647181,-480.0,0.00019178,2]
[382323973,1756578647190,-151.0,0.00019178,2]
[382323974,1756578647200,-647.17,0.00019178,2]
[382323975,1756578647210,-2259.26,0.00019178,2]
[382323976,1756578647220,-480.0,0.00019178,2]
[382323977,1756578647232,-2019.18,0.00019178,2]
[382323978,1756578647242,-221.516739,0.00019178,2]
[382323979,1756578647255,-480.0,0.00019178,2]
[382323980,1756578647265,-480.0,0.00019178,2]
[382323981,1756578647276,-480.0,0.00019178,2]
[382323982,1756578647286,-2494.79,0.00019178,2]
[382323983,1756578647295,-480.0,0.00019178,2]
[382323984,1756578647304,-480.0,0.00019178,2]
[382323985,1756578647314,-480.0,0.00019178,2]
[382323986,1756578647324,-480.0,0.00019178,2]
[382323987,1756578647334,-484.4259608,0.00019178,2]
[382323988,1756578647344,-834.41,0.00019178,2]
[382323989,1756578647353,-1746.94,0.00019178,2]
[382323990,1756578647363,-480.0,0.00019178,2]
[382323991,1756578647372,-480.0,0.00019178,2]
[382323992,1756578647382,-2167.42,0.00019178,2]
[382323993,1756578647391,-480.0,0.00019178,2]
[382323994,1756578647400,-480.0,0.00019178,2]
[382323995,1756578647410,-688.02,0.00019178,2]
[382323996,1756578647419,-1878.94,0.00019178,2]
[382323997,1756578647430,-480.0,0.00019178,2]
[382323998,1756578647440,-1628.37,0.00019178,2]
[382323999,1756578647450,-2707.1,0.00019178,2]
[382324000,1756578647459,-2124.06,0.00019178,2]
[382324001,1756578647469,-480.0,0.00019178,2]
[382324002,1756578647479,-673.944431,0.00019178,2]
[382324003,1756578647488,-673.944431,0.00019178,2]
[382324004,1756578647498,-673.944431,0.00019178,2]
[382324005,1756578647507,-480.0,0.00019178,2]
[382324006,1756578647518,-673.944431,0.00019178,2]
[382324007,1756578647527,-673.944431,0.00019178,2]
[382324008,1756578647538,-673.944431,0.00019178,2]
[382324009,1756578647547,-480.0,0.00019178,2]
[382324010,1756578647557,-673.944431,0.00019178,2]
[382324011,1756578647566,-673.944431,0.00019178,2]
[382324012,1756578647576,-800.65,0.00019178,2]
[382324013,1756578647585,-480.0,0.00019178,2]
[382324014,1756578647595,-673.944431,0.00019178,2]
[382324015,1756578647605,-673.944431,0.00019178,2]
[382324016,1756578647614,-151.0,0.00019178,2]
[382324017,1756578647625,-673.944431,0.00019178,2]
[382324018,1756578647634,-673.944431,0.00019178,2]
[382324019,1756578647644,-673.944431,0.00019178,2]
[382324020,1756578647654,-673.944431,0.00019178,2]
[382324021,1756578647663,-673.944431,0.00019178,2]
[382324022,1756578647673,-480.0,0.00019178,2]
[382324023,1756578647684,-673.944431,0.00019178,2]
[382324024,1756578647696,-673.944431,0.00019178,2]
[382324025,1756578647706,-673.944431,0.00019178,2]
[382324026,1756578647715,-673.944431,0.00019178,2]
[382324027,1756578647725,-673.944426,0.00019178,2]
[382324028,1756578647734,-2402.29,0.00019178,2]
[382324029,1756578647744,-2462.99,0.00019178,2]
[382324030,1756578647753,-151.0,0.00019178,2]
[382324031,1756578647763,-151.0,0.00019178,2]
[382324032,1756578647772,-7143.33,0.00019178,2]
[382324033,1756578647782,-151.0,0.00019178,2]
[382324034,1756578647791,-1549.65,0.00019178,2]
[382324035,1756578647801,-151.0,0.00019178,2]
[382324036,1756578647810,-151.0,0.00019178,2]
[382324037,1756578647820,-151.0,0.00019178,2]
[382324038,1756578647829,-797.44,0.00019178,2]
[382324039,1756578647840,-480.0,0.00019178,2]
[382324040,1756578647850,-480.0,0.00019178,2]
[382324041,1756578647862,-151.0,0.00019178,2]
[382324042,1756578647873,-2057.12,0.00019178,2]
[382324043,1756578647882,-194.055807,0.00019178,2]
[382324044,1756578647892,-760.12,0.00019178,2]
[382324045,1756578647901,-480.0,0.00019178,2]
[382324046,1756578647910,-563.93,0.00019178,2]
[382324047,1756578647920,-480.0,0.00019178,2]
[382324048,1756578647929,-480.0,0.00019178,2]
[382324049,1756578647939,-1950.39,0.00019178,2]
[382324050,1756578647948,-1793.44,0.00019178,2]
[382324051,1756578647958,-480.0,0.00019178,2]
[382324052,1756578647969,-480.0,0.00019178,2]
[382324053,1756578647979,-480.0,0.00019178,2]
[382324054,1756578647990,-480.0,0.00019178,2]
[382324055,1756578647999,-480.0,0.00019178,2]
[382324056,1756578648009,-480.0,0.00019178,2]
[382324057,1756578648018,-480.0,0.00019178,2]
[382324058,1756578648027,-1461.77,0.00019178,2]
[382324059,1756578648037,-1896.19,0.00019178,2]
[382324060,1756578648046,-480.0,0.00019178,2]
[382324061,1756578648056,-480.0,0.00019178,2]
[382324062,1756578648066,-480.0,0.00019178,2]
[382324063,1756578648076,-830.95,0.00019178,2]
[382324064,1756578648085,-480.0,0.00019178,2]
[382324065,1756578648095,-776.61,0.00019178,2]
[382324066,1756578648105,-1839.02,0.00019178,2]
[382324067,1756578648115,-480.0,0.00019178,2]
[382324068,1756578648125,-1967.31,0.00019178,2]
[382324069,1756578648134,-2438.4,0.00019178,2]
[382324070,1756578648144,-480.0,0.00019178,2]
[382324071,1756578648154,-803.42,0.00019178,2]
[382324072,1756578648163,-2250.42,0.00019178,2]
[382324073,1756578648172,-151.0,0.00019178,2]
[382324074,1756578648182,-151.0,0.00019178,2]
[382324075,1756578648191,-2043.75,0.00019178,2]
[382324076,1756578648201,-661.03,0.00019178,2]
[382324077,1756578648211,-480.0,0.00019178,2]
[382324078,1756578648220,-342.68048927,0.00019178,2]
[382324079,1756578648230,-480.0,0.00019178,2]
[382324080,1756578648239,-151.0,0.00019178,2]
[382324081,1756578648249,-1752.6,0.00019178,2]
[382324082,1756578648259,-2263.39,0.00019178,2]
[382324083,1756578648268,-501.7,0.00019178,2]
[382324084,1756578648278,-1816.46,0.00019178,2]
[382324085,1756578648287,-1044.75,0.00019178,2]
[382324086,1756578648297,-480.0,0.00019178,2]
[382324087,1756578648306,-203.689288,0.00019178,2]
[382324088,1756578648317,-903.61,0.00019178,2]
[382324089,1756578648327,-203.689288,0.00019178,2]
[382324090,1756578648336,-480.0,0.00019178,2]
[382324091,1756578648346,-203.689288,0.00019178,2]
[382324092,1756578648356,-480.0,0.00019178,2]
[382324093,1756578648365,-203.689288,0.00019178,2]
[382324094,1756578648375,-203.689288,0.00019178,2]
[382324095,1756578648384,-203.689288,0.00019178,2]
[382324096,1756578648395,-482.32,0.00019178,2]
[382324097,1756578648404,-203.689288,0.00019178,2]
[382324098,1756578648413,-203.689288,0.00019178,2]
[382324099,1756578648423,-203.689288,0.00019178,2]
[382324100,1756578648432,-203.689288,0.00019178,2]
[382324101,1756578648442,-4570.06,0.00019178,2]
[382324102,1756578648452,-203.689288,0.00019178,2]
[382324103,1756578648461,-203.689288,0.00019178,2]
[382324104,1756578648471,-203.689288,0.00019178,2]
[382324105,1756578648480,-484.00662915,0.00019178,2]
[382324106,1756578648490,-480.0,0.00019178,2]
[382324107,1756578648499,-203.689288,0.00019178,2]
[382324108,1756578648509,-203.689288,0.00019178,2]
[382324109,1756578648519,-7653.86,0.00019178,2]
[382324110,1756578648528,-203.689288,0.00019178,2]
[382324111,1756578648538,-203.689288,0.00019178,2]
[382324112,1756578648548,-203.689288,0.00019178,2]
[382324113,1756578648558,-480.0,0.00019178,2]
[382324114,1756578648567,-203.689288,0.00019178,2]
[382324115,1756578648576,-203.689293,0.00019178,2]
[382324116,1756578648586,-480.0,0.00019178,2]
[382324117,1756578648595,-151.0,0.00019178,2]
[382324118,1756578648605,-151.0,0.00019178,2]
[382324119,1756578648614,-151.0,0.00019178,2]
[382324120,1756578648624,-924.62,0.00019178,2]
[382324121,1756578648633,-480.0,0.00019178,2]
[382324122,1756578648643,-2729.67,0.00019178,2]
[382324123,1756578648652,-644.94,0.00019178,2]
[382324124,1756578648661,-480.0,0.00019178,2]
[382324125,1756578648671,-480.0,0.00019178,2]
[382324126,1756578648681,-248.48756,0.00019178,2]
[382324127,1756578648693,-480.0,0.00019178,2]
[382324128,1756578648703,-480.0,0.00019178,2]
[382324129,1756578648712,-513.98,0.00019178,2]
[382324130,1756578648722,-644.39,0.00019178,2]
[382324131,1756578648731,-748.22,0.00019178,2]
[382324132,1756578648741,-1537.58,0.00019178,2]
[382324133,1756578648750,-2283.08,0.00019178,2]
[382324134,1756578648759,-2340.53,0.00019178,2]
[382324135,1756578648768,-480.21,0.00019178,2]
[382324136,1756578648778,-480.0,0.00019178,2]
[382324137,1756578648788,-480.0,0.00019178,2]
[382324138,1756578648797,-480.0,0.00019178,2]
[382324139,1756578648807,-1870.17,0.00019178,2]
[382324140,1756578648818,-12366.15,0.00019178,2]
[382324141,1756578648827,-511.45694253,0.00019178,2]
[382324142,1756578648837,-715.649439,0.00019178,2]
[382324143,1756578648846,-480.0,0.00019178,2]
[382324144,1756578648856,-715.649439,0.00019178,2]
[382324145,1756578648865,-480.0,0.00019178,2]
[382324146,1756578648875,-715.649439,0.00019178,2]
[382324147,1756578648884,-715.649439,0.00019178,2]
[382324148,1756578648894,-715.649439,0.00019178,2]
[382324149,1756578648903,-715.649439,0.00019178,2]
[382324150,1756578648912,-480.0,0.00019178,2]
[382324151,1756578648921,-715.649439,0.00019178,2]
[382324152,1756578648931,-480.0,0.00019178,2]
[382324153,1756578648940,-715.649439,0.00019178,2]
[382324154,1756578648950,-715.649439,0.00019178,2]
[382324155,1756578648959,-1296.19,0.00019178,2]
[382324156,1756578648969,-715.649439,0.00019178,2]
[382324157,1756578648979,-715.649439,0.00019178,2]
[382324158,1756578648988,-715.649439,0.00019178,2]
[382324159,1756578648998,-715.649439,0.00019178,2]
[382324160,1756578649008,-715.649439,0.00019178,2]
[382324161,1756578649017,-715.649439,0.00019178,2]
[382324162,1756578649027,-715.649439,0.00019178,2]
[382324163,1756578649037,-715.649439,0.00019178,2]
[382324164,1756578649046,-715.649439,0.00019178,2]
[382324165,1756578649056,-715.649439,0.00019178,2]
[382324166,1756578649066,-948.46,0.00019178,2]
[382324167,1756578649076,-715.649438,0.00019178,2]
[382324168,1756578649086,-480.0,0.00019178,2]
[382324169,1756578649095,-216.25802849,0.00019178,7]
[382324170,1756578649104,-2419.37,0.00019178,2]
[382324171,1756578649114,-480.0,0.00019178,2]
[382324172,1756578649124,-480.0,0.00019178,2]
[382324173,1756578649133,-480.0,0.00019178,2]
[382324174,1756578649143,-680.22,0.00019178,2]
[382324175,1756578649153,-151.0,0.00019178,2]
[382324176,1756578649162,-151.0,0.00019178,2]
[382324177,1756578649171,-3915.84,0.00019178,2]
[382324178,1756578649181,-672.91,0.00019178,2]
[382324179,1756578649191,-869.69,0.00019178,2]
[382324180,1756578649200,-485.38515749,0.00019178,2]
[382324181,1756578649210,-1500.0,0.00019178,7]
[382324182,1756578649220,-1500.0,0.00019178,7]
[382324183,1756578649229,-1500.0,0.00019178,7]
[382324184,1756578649239,-1500.0,0.00019178,7]
[382324185,1756578649249,-1500.0,0.00019178,7]
[382324186,1756578649258,-1500.0,0.00019178,7]
[382324187,1756578649266,-480.0,0.00019178,2]
[382324188,1756578649276,-1500.0,0.00019178,7]
[382324189,1756578649286,-1500.0,0.00019178,7]
[382324190,1756578649295,-500.0,0.00019178,2]
[382324191,1756578649305,-1500.0,0.00019178,7]
[382324192,1756578649315,-1637.566311,0.00019178,7]
[382324193,1756578649325,-522.05906323,0.00019178,2]
[382324194,1756578649335,-194.22954816,0.00019178,2]
[382324195,1756578649344,-2966.36,0.00019178,2]
[382324196,1756578649354,-151.0,0.00019178,2]
[382324197,1756578649364,-151.0,0.00019178,2]
[382324198,1756578649373,-758.02,0.00019178,2]
[382324199,1756578649383,-484.30231142,0.00019178,2]
[382324200,1756578649392,-832.63,0.00019178,2]
[382324201,1756578649402,-500.0,0.00019178,2]
[382324202,1756578649411,-480.0,0.00019178,2]
[382324203,1756578649420,-1547.79,0.00019178,2]
[382324204,1756578649430,-480.0,0.00019178,2]
[382324205,1756578649439,-500.0,0.00019178,2]
[382324206,1756578649448,-500.0,0.00019178,2]
[382324207,1756578649458,-1620.25,0.00019178,2]
[382324208,1756578649468,-529.89603018,0.00019178,7]
[382324209,1756578649477,-480.0,0.00019178,2]
[382324210,1756578649488,-1000.0,0.00019178,2]
[382324211,1756578649498,-480.0,0.00019178,2]
[382324212,1756578649507,-1000.0,0.00019178,2]
[382324213,1756578649517,-487.22,0.00019178,2]
[382324214,1756578649527,-556.41,0.00019178,2]
[382324215,1756578649537,-543.71,0.00019178,2]
[382324216,1756578649547,-480.0,0.00019178,2]
[382324217,1756578649556,-991.16,0.00019178,2]
[382324218,1756578649567,-480.0,0.00019178,2]
[382324219,1756578649575,-480.0,0.00019178,2]
[382324220,1756578649585,-480.0,0.00019178,2]
[382324221,1756578649595,-1126.99,0.00019178,2]
[382324222,1756578649605,-523.37629757,0.00019178,2]
[382324223,1756578649614,-648.45,0.00019178,2]
[382324224,1756578649624,-2384.95,0.00019178,2]
[382324225,1756578649634,-1993.99,0.00019178,2]
[382324226,1756578649644,-3708.12,0.00019178,2]
[382324227,1756578649654,-480.0,0.00019178,2]
[382324228,1756578649663,-605.17,0.00019178,2]
[382324229,1756578649672,-417.93098691,0.00019178,2]
[382324230,1756578649682,-485.00095298,0.00019178,2]
[382324231,1756578649694,-480.0,0.00019178,2]
[382324232,1756578649704,-480.0,0.00019178,2]
[382324233,1756578649713,-480.0,0.00019178,2]
[382324234,1756578649722,-580.81,0.00019178,2]
[382324235,1756578649734,-499.12,0.00019178,2]
[382324236,1756578649743,-151.0,0.00019178,2]
[382324237,1756578649752,-480.0,0.00019178,2]
[382324238,1756578649762,-749.18,0.00019178,2]
[382324239,1756578649771,-817.15,0.00019178,2]
[382324240,1756578649781,-480.0,0.00019178,2]
[382324241,1756578649790,-905.8,0.00019178,2]
[382324242,1756578649799,-480.0,0.00019178,2]
[382324243,1756578649808,-575.22,0.00019178,2]
[382324244,1756578649818,-480.0,0.00019178,2]
[382324245,1756578649828,-480.0,0.00019178,2]
[382324246,1756578649838,-601.13,0.00019178,2]
[382324247,1756578649848,-480.0,0.00019178,2]
[382324248,1756578649858,-500.0,0.00019178,2]
[382324249,1756578649867,-660.17,0.00019178,2]
[382324250,1756578649876,-500.0,0.00019178,2]
[382324251,1756578649886,-480.0,0.00019178,2]
[382324252,1756578649896,-500.0,0.00019178,2]
[382324253,1756578649906,-627.7296601,0.00019178,2]
[382324254,1756578650055,-528.88,0.00019178,2]
[382324255,1756578650065,-151.0,0.00019178,2]
[382324256,1756578650075,-151.0,0.00019178,2]
[382324257,1756578650084,-480.0,0.00019178,2]
[382324258,1756578650093,-1884.92,0.00019178,2]
[382324259,1756578650103,-406.68447411,0.00019178,2]
[382324260,1756578650112,-6576.13,0.00019178,2]
[382324261,1756578650123,-608.83,0.00019178,2]
[382324262,1756578650132,-432.77562155,0.00019178,2]
[382324263,1756578650141,-176.22159004,0.00019178,2]
[382324264,1756578650151,-151.0,0.00019178,2]
[382324265,1756578650160,-480.0,0.00019178,2]
[382324266,1756578650170,-151.0,0.00019178,2]
[382324267,1756578650179,-763.31,0.00019178,2]
[382324268,1756578650188,-151.0,0.00019178,2]
[382324269,1756578650198,-151.0,0.00019178,2]
[382324270,1756578650207,-151.0,0.00019178,2]
[382324271,1756578650217,-480.0,0.00019178,2]
[382324272,1756578650226,-151.0,0.00019178,2]
[382324273,1756578650236,-151.0,0.00019178,2]
[382324274,1756578650245,-956.33,0.00019178,2]
[382324275,1756578650255,-1854.55,0.00019178,2]
[382324276,1756578650264,-480.0,0.00019178,2]
[382324277,1756578650274,-151.0,0.00019178,2]
[382324278,1756578650283,-480.0,0.00019178,2]
[382324279,1756578650293,-151.0,0.00019178,2]
[382324280,1756578650303,-151.0,0.00019178,2]
[382324281,1756578650312,-151.0,0.00019178,2]
[382324282,1756578650322,-151.0,0.00019178,2]
[382324283,1756578650331,-5905.6,0.00019178,2]
[382324284,1756578650341,-568.35133622,0.00019178,2]
[382324285,1756578650351,-223.864832,0.00019178,2]
[382324286,1756578650361,-151.0,0.00019178,2]
[382324287,1756578650370,-151.0,0.00019178,2]
[382324288,1756578650380,-480.0,0.00019178,2]
[382324289,1756578650390,-227.29189616,0.00019178,2]
[382324290,1756578650400,-849.73,0.00019178,2]
[382324291,1756578650410,-1485.64,0.00019178,2]
[382324292,1756578650419,-480.0,0.00019178,2]
[382324293,1756578650429,-480.0,0.00019178,2]
[382324294,1756578650439,-480.0,0.00019178,2]
[382324295,1756578650449,-1883.18,0.00019178,2]
[382324296,1756578650459,-669.53,0.00019178,2]
[382324297,1756578650469,-2791.76,0.00019178,2]
[382324298,1756578650478,-480.0,0.00019178,2]
[382324299,1756578650487,-4067.97,0.00019178,2]
[382324300,1756578650497,-771.53,0.00019178,2]
[382324301,1756578650507,-162.911235,0.00019178,2]
[382324302,1756578650516,-162.911235,0.00019178,2]
[382324303,1756578650526,-162.911235,0.00019178,2]
[382324304,1756578650536,-480.0,0.00019178,2]
[382324305,1756578650545,-162.911235,0.00019178,2]
[382324306,1756578650555,-162.911235,0.00019178,2]
[382324307,1756578650565,-162.911235,0.00019178,2]
[382324308,1756578650574,-162.911235,0.00019178,2]
[382324309,1756578650584,-162.911235,0.00019178,2]
[382324310,1756578650594,-162.911235,0.00019178,2]
[382324311,1756578650604,-162.911235,0.00019178,2]
[382324312,1756578650615,-162.911235,0.00019178,2]
[382324313,1756578650625,-321.86864523,0.00019178,2]
[382324314,1756578650635,-162.911235,0.00019178,2]
[382324315,1756578650645,-162.911235,0.00019178,2]
[382324316,1756578650655,-162.911235,0.00019178,2]
[382324317,1756578650665,-480.0,0.00019178,2]
[382324318,1756578650675,-162.911235,0.00019178,2]
[382324319,1756578650684,-162.911235,0.00019178,2]
[382324320,1756578650694,-480.0,0.00019178,2]
[382324321,1756578650704,-162.911235,0.00019178,2]
[382324322,1756578650714,-162.911235,0.00019178,2]
[382324323,1756578650723,-1166.62,0.00019178,2]
[382324324,1756578650733,-480.0,0.00019178,2]
[382324325,1756578650743,-480.0,0.00019178,2]
[382324326,1756578650753,-480.0,0.00019178,2]
[382324327,1756578650763,-1982.74,0.00019178,2]
[382324328,1756578650772,-162.911235,0.00019178,2]
[382324329,1756578650782,-162.911231,0.00019178,2]
[382324330,1756578650792,-480.0,0.00019178,2]
[382324331,1756578650802,-480.0,0.00019178,2]
[382324332,1756578650811,-500.0,0.00019178,2]
[382324333,1756578650821,-151.0,0.00019178,2]
[382324334,1756578650830,-833.12,0.00019178,2]
[382324335,1756578650840,-480.0,0.00019178,2]
[382324336,1756578650850,-2888.14,0.00019178,2]
[382324337,1756578650860,-4766.93,0.00019178,2]
[382324338,1756578650870,-154.290052,0.00019178,2]